bitfinex/quotes_BTCUSD_20260310
["timestamp","ask_amount","ask_price","bid_price","bid_amount"]
[1773161699974,0.03,71359.0,71350.0,0.13876107]
[1773161700428,0.0660669,71366.0,71350.0,0.13876107]
[1773161700429,0.07005638,71372.0,71352.0,0.06868413]
[1773161700613,0.0660669,71371.0,71353.0,0.06868413]
[1773161701217,0.0960669,71370.0,71353.0,0.06868413]
[1773161701420,0.03,71366.0,71354.0,0.00144]
[1773161701618,0.03,71362.0,71354.0,0.00144]
[1773161702018,0.07005941,71368.0,71355.0,0.00144]
[1773161702229,0.0660669,71367.0,71355.0,0.00144]
[1773161702399,0.0660669,71367.0,71353.0,0.07007357]
[1773161702584,0.03,71366.0,71354.0,0.00144]
[1773161702787,0.001,71355.0,71353.0,0.07007357]
[1773161702988,0.0960669,71364.0,71358.0,0.145]
[1773161703430,0.03,71362.0,71359.0,0.00144]
[1773161703828,0.03,71362.0,71358.0,0.145]
[1773161703829,0.03,71362.0,71360.0,0.00144]
[1773161704261,0.03,71362.0,71358.0,0.145]
[1773161704432,0.03,71364.0,71361.0,0.00144]
[1773161704845,0.10006369,71364.0,71361.0,0.00144]
[1773161705047,0.16613059,71364.0,71361.0,0.00144]
[1773161705765,0.16613059,71364.0,71358.0,0.145]
[1773161705915,0.10006431,71363.0,71362.0,0.00144]
[1773161707310,0.031,71363.0,71362.0,0.00144]
[1773161707664,0.0002,71365.0,71362.0,0.00144]
[1773161707851,0.07005646,71371.0,71362.0,0.00144]
[1773161708050,0.0702827,71375.0,71363.0,0.06868413]
[1773161708455,0.001,71363.0,71354.0,0.07007275]
[1773161708681,0.001,71363.0,71352.0,0.07044936]
[1773161708846,0.001,71363.0,71355.0,0.00144]
[1773161709042,0.001,71363.0,71356.0,0.07007119]
[1773161709272,0.001,71363.0,71357.0,0.00144]
[1773161710342,0.10006257,71365.0,71357.0,0.00144]
[1773161710735,0.10106257,71365.0,71357.0,0.00144]
[1773161710929,0.10006257,71365.0,71357.0,0.00144]
[1773161711700,0.10006257,71365.0,71358.0,0.00144]
[1773161711910,0.10026257,71365.0,71358.0,0.00144]
[1773161713017,0.0660669,71373.0,71358.0,0.00144]
[1773161713217,0.0660669,71373.0,71351.0,0.07007604]
[1773161713420,0.0660669,71369.0,71352.0,0.07151469]
[1773161713897,0.0660669,71367.0,71352.0,0.07151469]
[1773161714194,0.0660669,71367.0,71353.0,0.00144]
[1773161715779,0.07006137,71366.0,71348.0,0.07007877]
[1773161715986,0.0660669,71364.0,71349.0,0.00144]
[1773161716195,0.0660669,71364.0,71350.0,0.00144]
[1773161716761,0.0660669,71364.0,71351.0,0.00144]
[1773161717191,0.0660669,71364.0,71351.0,0.07012413]
[1773161717978,0.07006431,71363.0,71351.0,0.07012413]
[1773161719011,0.07006431,71363.0,71351.0,0.07034413]
[1773161719391,0.07366456,71362.0,71351.0,0.00166]
[1773161720044,0.07366456,71362.0,71347.0,0.00022]
[1773161720045,0.07366456,71360.0,71352.0,0.00144]
[1773161720244,0.07366456,71360.0,71353.0,0.00144]
[1773161720397,0.07366456,71360.0,71346.0,0.00022]
[1773161720610,0.07366456,71360.0,71347.0,0.00144]
[1773161720801,0.07366456,71360.0,71348.0,0.00144]
[1773161721050,0.07366456,71360.0,71340.0,0.00022]
[1773161721280,0.07366456,71360.0,71331.0,0.0004764]
[1773161721281,0.07366456,71349.0,71333.0,0.00022]
[1773161721933,0.07366456,71349.0,71335.0,0.00144]
[1773161722151,0.07366456,71347.0,71333.0,0.00022]
[1773161722294,0.07366456,71347.0,71336.0,0.00144]
[1773161722493,0.07366456,71347.0,71336.0,0.00155247]
[1773161723087,0.07007904,71348.0,71336.0,0.00155247]
[1773161723088,0.03,71344.0,71336.0,0.00011247]
[1773161723287,0.03,71340.0,71337.0,0.00144]
[1773161723503,0.07007904,71348.0,71337.0,0.00144]
[1773161723504,0.10366456,71338.0,71337.0,0.00144]
[1773161723709,0.03,71336.0,71331.0,0.0004764]
[1773161723936,0.03,71334.0,71328.0,0.00562]
[1773161724139,0.17375834,71333.0,71332.0,0.00144]
[1773161724338,0.17375834,71333.0,71325.0,0.00023]
[1773161724339,0.07366456,71330.0,71325.0,0.00023]
[1773161724598,0.10366456,71327.0,71319.0,0.02662313]
[1773161724862,0.07009378,71333.0,71320.0,0.00144]
[1773161724863,0.03,71323.0,71320.0,0.00144]
[1773161725069,0.15717811,71330.0,71320.0,0.00144]
[1773161725070,0.03,71321.0,71320.0,0.00144]
[1773161726043,0.03,71330.0,71320.0,0.00144]
[1773161726248,0.03,71328.0,71320.0,0.00144]
[1773161726641,0.03,71326.0,71320.0,0.00144]
[1773161726839,0.03,71326.0,71314.0,0.00037]
[1773161727064,0.03,71320.0,71315.0,0.00144]
[1773161727487,0.03,71318.0,71315.0,0.00144]
[1773161727689,0.03,71318.0,71314.0,0.00037]
[1773161727986,0.03,71317.0,71316.0,0.00144]
[1773161728199,0.10010951,71317.0,71314.0,0.00037]
[1773161728405,0.03,71317.0,71316.0,0.00144]
[1773161728618,0.0701081,71319.0,71316.0,0.00144]
[1773161728619,0.07009771,71329.0,71316.0,0.00144]
[1773161728818,0.07009771,71329.0,71314.0,0.00037]
[1773161728819,0.03,71326.0,71314.0,0.00037]
[1773161728961,0.07366456,71321.0,71317.0,0.00144]
[1773161729313,0.03,71320.0,71317.0,0.00144]
[1773161730167,0.03,71323.0,71317.0,0.00144]
[1773161731943,0.03,71323.0,71314.0,0.00037]
[1773161731944,0.03,71321.0,71318.0,0.00144]
[1773161732103,0.10366456,71319.0,71314.0,0.00037]
[1773161732307,0.17377247,71319.0,71315.0,0.00144]
[1773161732684,0.17377247,71319.0,71314.0,0.00037]
[1773161732881,0.03,71317.0,71315.0,0.00144]
[1773161733306,0.07366456,71316.0,71307.0,0.00022]
[1773161733503,0.10366456,71315.0,71308.0,0.00144]
[1773161733789,0.10366456,71315.0,71299.0,0.07012693]
[1773161733790,0.03,71311.0,71301.0,0.00144]
[1773161733995,0.03,71307.0,71302.0,0.00144]
[1773161734216,0.10366456,71307.0,71302.0,0.00144]
[1773161734391,0.03,71305.0,71302.0,0.00144]
[1773161735381,0.0300892,71305.0,71302.0,0.00144]
[1773161735580,0.07012032,71309.0,71302.0,0.00144]
[1773161735581,0.07366456,71323.0,71303.0,0.07473774]
[1773161735788,0.07366456,71322.0,71303.0,0.07473774]
[1773161735987,8.944e-05,71323.0,71305.0,0.07473774]
[1773161736139,8.944e-05,71323.0,71307.0,0.07473774]
[1773161736351,8.944e-05,71323.0,71308.0,0.07011835]
[1773161736657,8.944e-05,71323.0,71309.0,0.07617774]
[1773161736892,8.944e-05,71323.0,71304.0,0.07012168]
[1773161737066,0.03,71321.0,71305.0,0.00144]
[1773161737283,0.10366456,71321.0,71305.0,0.00144]
[1773161737462,0.10366456,71321.0,71307.0,0.07473774]
[1773161737463,0.03,71321.0,71307.0,0.07473774]
[1773161738081,8.944e-05,71323.0,71307.0,0.07473774]
[1773161738510,0.001,71319.0,71308.0,0.14485609]
[1773161738641,0.001,71319.0,71308.0,0.07011835]
[1773161738843,0.03,71322.0,71309.0,0.07613061]
[1773161739047,0.07010343,71324.0,71309.0,0.07613061]
[1773161739273,0.07010343,71324.0,71311.0,0.07473774]
[1773161739474,0.03,71323.0,71311.0,0.07473774]
[1773161739925,0.07010156,71326.0,71311.0,0.07473774]
[1773161740526,0.03,71330.0,71313.0,0.07473774]
[1773161740737,0.0002,71322.0,71313.0,0.07473774]
[1773161740911,0.03,71330.0,71313.0,0.07473774]
[1773161741244,0.10366456,71330.0,71313.0,0.07473774]
[1773161741470,0.10366456,71330.0,71314.0,0.00144]
[1773161741695,0.03,71328.0,71314.0,0.00144]
[1773161742228,0.07030073,71333.0,71314.0,0.00144]
[1773161742229,0.07008876,71339.0,71315.0,0.07473774]
[1773161742697,0.03,71338.0,71317.0,0.07473774]
[1773161743355,0.07366456,71337.0,71317.0,0.07473774]
[1773161743524,0.07008876,71339.0,71318.0,0.00144]
[1773161743525,0.03,71334.0,71318.0,0.00144]
[1773161743722,0.03,71334.0,71319.0,0.07329774]
[1773161744088,0.03,71334.0,71321.0,0.07473774]
[1773161744511,0.07008985,71337.0,71322.0,0.07010459]
[1773161744714,0.03,71336.0,71323.0,0.07473774]
[1773161745729,0.03,71337.0,71323.0,0.07473774]
[1773161747043,0.03,71335.0,71323.0,0.14484083]
[1773161747256,0.03,71335.0,71320.0,0.07154459]
[1773161747430,0.03,71333.0,71320.0,0.07154581]
[1773161747610,0.10235839,71333.0,71320.0,0.07154581]
[1773161747813,0.03,71333.0,71321.0,0.07701053]
[1773161748445,0.07009083,71336.0,71321.0,0.07701053]
[1773161748446,0.03,71332.0,71321.0,0.07701053]
[1773161748822,0.10235839,71330.0,71322.0,0.00144]
[1773161749035,0.03,71330.0,71322.0,0.00144]
[1773161749237,0.03,71330.0,71322.0,0.14501598]
[1773161749557,0.07009377,71335.0,71324.0,0.07491166]
[1773161749926,0.03,71334.0,71324.0,0.07491166]
[1773161751192,0.03,71332.0,71324.0,0.07491166]
[1773161751637,0.03,71328.0,71311.0,0.07491166]
[1773161751874,0.03,71324.0,71311.0,0.07491166]
[1773161752165,0.1013515,71324.0,71309.0,8.944e-05]
[1773161752362,0.1013515,71324.0,71310.0,0.00144]
[1773161752722,0.1013515,71324.0,71311.0,0.00144]
[1773161753329,0.03,71322.0,71311.0,0.07635166]
[1773161753753,0.07010361,71323.0,71309.0,8.944e-05]
[1773161753754,0.03,71320.0,71309.0,8.944e-05]
[1773161753978,0.1013515,71316.0,71310.0,0.00144]
[1773161754124,0.03,71316.0,71310.0,0.00144]
[1773161754964,0.03,71320.0,71311.0,0.00144]
[1773161755166,0.03,71314.0,71301.0,0.07012524]
[1773161755409,0.03,71314.0,71301.0,0.0001127]
[1773161755736,0.03,71308.0,71302.0,0.00144]
[1773161756294,0.1013515,71308.0,71303.0,0.00144]
[1773161756515,0.03,71308.0,71303.0,0.00144]
[1773161756709,0.03,71312.0,71303.0,0.00144]
[1773161757320,0.10011521,71312.0,71304.0,0.07491166]
[1773161758465,0.03,71311.0,71304.0,0.07491166]
[1773161759017,0.03,71311.0,71298.0,0.07012737]
[1773161759270,0.1013515,71311.0,71299.0,0.00144]
[1773161759510,0.03,71309.0,71299.0,0.00144]
[1773161759629,0.03,71309.0,71299.0,0.14647846]
[1773161760337,0.0701106,71316.0,71300.0,0.07539461]
[1773161760537,0.03,71315.0,71300.0,0.07679713]
[1773161760744,0.03,71315.0,71300.0,0.07491166]
[1773161760961,0.03,71311.0,71301.0,0.00144]
[1773161761241,0.03,71311.0,71298.0,8.92e-05]
[1773161761514,0.03,71305.0,71299.0,0.00144]
[1773161761663,0.03,71305.0,71300.0,0.00144]
[1773161761859,0.0713515,71304.0,71300.0,0.00144]
[1773161762113,0.1013515,71303.0,71301.0,0.00144]
[1773161762316,0.1013515,71303.0,71302.0,0.00144]
[1773161762942,0.1013515,71303.0,71297.0,0.0002593]
[1773161763121,0.03,71300.0,71298.0,0.00144]
[1773161763496,0.03,71300.0,71299.0,0.00144]
[1773161764120,0.00011255,71303.0,71299.0,0.00144]
[1773161764319,0.03,71304.0,71299.0,0.00144]
[1773161765001,0.07011236,71315.0,71300.0,0.07491166]
[1773161765223,0.03,71314.0,71300.0,0.07491166]
[1773161766064,0.03,71312.0,71300.0,0.07491166]
[1773161766226,0.03,71312.0,71300.0,0.14503768]
[1773161766422,0.03,71312.0,71299.0,0.00144]
[1773161766622,0.03,71308.0,71298.0,0.20822444]
[1773161766834,0.0713515,71303.0,71299.0,0.00144]
[1773161767170,0.1013515,71302.0,71300.0,0.00144]
[1773161767416,0.03,71300.0,71299.0,0.00011255]
[1773161767564,0.0713515,71297.0,71285.0,0.00022]
[1773161767755,0.0713515,71297.0,71286.0,0.00144]
[1773161767756,0.03,71292.0,71286.0,0.00144]
[1773161767973,0.03,71290.0,71285.0,0.00022]
[1773161768196,0.1013515,71290.0,71287.0,0.00144]
[1773161768472,0.1013515,71290.0,71285.0,0.00022]
[1773161768672,0.03,71288.0,71286.0,0.00144]
[1773161769451,0.00011257,71297.0,71287.0,0.07491166]
[1773161769597,0.07024236,71297.0,71287.0,0.07491166]
[1773161769822,0.07012504,71302.0,71287.0,0.07491166]
[1773161770048,0.07012404,71303.0,71288.0,0.07491166]
[1773161770316,0.00144,71312.0,71288.0,0.07491166]
[1773161770317,0.07011673,71310.0,71288.0,0.07491166]
[1773161770533,0.0713515,71309.0,71288.0,0.07491166]
[1773161770747,0.03,71308.0,71288.0,0.07491166]
[1773161770961,0.03,71306.0,71288.0,0.07491166]
[1773161771160,0.03,71304.0,71288.0,0.07491166]
[1773161771432,0.1013515,71304.0,71288.0,0.07491166]
[1773161771871,0.03,71302.0,71288.0,0.07491166]
[1773161772081,0.03,71300.0,71288.0,0.07491166]
[1773161772503,0.03,71300.0,71288.0,0.0701372]
[1773161772704,0.03,71300.0,71292.0,0.00022]
[1773161772857,0.03,71300.0,71293.0,0.00144]
[1773161773064,0.03,71301.0,71294.0,0.00144]
[1773161773732,0.03,71301.0,71292.0,0.00022]
[1773161773937,0.1013515,71299.0,71293.0,0.00144]
[1773161774132,0.1013515,71297.0,71293.0,0.00144]
[1773161774536,0.1013515,71297.0,71292.0,0.00022]
[1773161774733,0.03,71295.0,71292.0,0.00022]
[1773161774940,0.1013515,71295.0,71292.0,0.00166]
[1773161775145,0.03,71295.0,71292.0,0.00166]
[1773161775556,0.1013515,71295.0,71292.0,0.00166]
[1773161776184,0.03,71294.0,71292.0,0.00166]
[1773161776863,0.10013249,71294.0,71292.0,0.00166]
[1773161778842,0.10013249,71294.0,71269.0,0.16854]
[1773161778843,0.0713515,71291.0,71269.0,0.16854]
[1773161779192,0.07013249,71294.0,71274.0,0.00144]
[1773161779193,0.03,71284.0,71274.0,0.00144]
[1773161779428,0.03,71280.0,71274.0,0.00144]
[1773161779620,0.1031692,71280.0,71274.0,0.00144]
[1773161779864,0.03,71280.0,71275.0,0.00144]
[1773161780067,0.1031692,71280.0,71275.0,0.00144]
[1773161780269,0.00037551,71284.0,71273.0,0.00048]
[1773161780270,0.03,71278.0,71273.0,0.00048]
[1773161780475,0.10014816,71278.0,71275.0,0.00144]
[1773161781333,0.03,71276.0,71273.0,0.00048]
[1773161781547,0.07014816,71278.0,71272.0,0.00562]
[1773161781548,0.03,71274.0,71272.0,0.00562]
[1773161781759,0.03,71274.0,71272.0,0.00706]
[1773161782183,0.03,71273.0,71272.0,0.00706]
[1773161782370,0.03,71273.0,71272.0,0.00562]
[1773161782529,0.03,71273.0,71272.0,0.00706]
[1773161783138,0.07013814,71288.0,71273.0,0.07095014]
[1773161783338,0.0731692,71288.0,71272.0,0.00706]
[1773161783543,0.0731692,71288.0,71272.0,0.00743551]
[1773161783762,0.001,71278.0,71272.0,0.00743551]
[1773161784330,0.03,71287.0,71272.0,0.00743551]
[1773161784331,0.03,71285.0,71277.0,0.00022]
[1773161784581,0.03,71285.0,71278.0,0.00144]
[1773161785346,0.03,71283.0,71272.0,1e-08]
[1773161785554,0.03,71277.0,71272.0,1e-08]
[1773161785758,0.03,71275.0,71272.0,1e-08]
[1773161786561,0.03,71273.0,71272.0,1e-08]
[1773161787854,0.07014103,71285.0,71272.0,1e-08]
[1773161788059,0.00144,71288.0,71273.0,0.07095014]
[1773161788496,0.07013901,71287.0,71272.0,1e-08]
[1773161788693,0.0731692,71286.0,71272.0,1e-08]
[1773161788910,0.03,71285.0,71272.0,1e-08]
[1773161789114,0.1031692,71285.0,71272.0,1e-08]
[1773161789612,0.03,71281.0,71272.0,1e-08]
[1773161789764,0.1031692,71281.0,71273.0,0.00144]
[1773161790243,0.1031692,71281.0,71272.0,1e-08]
[1773161790397,0.03,71281.0,71274.0,0.00144]
[1773161790580,0.03,71283.0,71274.0,0.00144]
[1773161791861,0.14330821,71287.0,71274.0,0.00144]
[1773161791862,0.10013438,71292.0,71275.0,0.07095014]
[1773161792254,0.23963342,71292.0,71275.0,0.07095014]
[1773161792421,0.03,71286.0,71274.0,0.00144]
[1773161792597,0.03,71284.0,71274.0,0.00144]
[1773161793198,0.03,71284.0,71272.0,1e-08]
[1773161793425,0.03,71284.0,71273.0,0.00144]
[1773161793624,0.03,71284.0,71273.0,0.07239014]
[1773161794437,0.03,71282.0,71272.0,1e-08]
[1773161794706,0.07014688,71279.0,71266.0,0.07015924]
[1773161794909,0.07014688,71279.0,71213.0,0.41548783]
[1773161794910,0.10014605,71280.0,71251.0,0.00144]
[1773161794911,0.0731692,71268.0,71251.0,0.00144]
[1773161795120,0.03,71269.0,71251.0,0.00144]
[1773161795121,0.0731692,71269.0,71252.0,0.07095014]
[1773161795325,0.0731692,71269.0,71251.0,0.00155275]
[1773161795736,0.0731692,71269.0,71251.0,0.00011275]
[1773161795948,0.0731692,71269.0,71252.0,0.00144]
[1773161796155,0.03,71266.0,71252.0,0.00144]
[1773161796363,0.1031692,71266.0,71252.0,0.00144]
[1773161796985,0.03,71264.0,71252.0,0.00144]
[1773161797906,0.03,71264.0,71252.0,0.07239014]
[1773161798313,0.03,71264.0,71259.0,0.00022]
[1773161798896,0.03,71262.0,71252.0,0.00144]
[1773161799864,0.07016263,71263.0,71252.0,0.00144]
[1773161800076,0.03,71263.0,71253.0,0.07095014]
[1773161800456,0.07016179,71264.0,71253.0,0.07095014]
[1773161800980,0.07015739,71269.0,71255.0,0.07095014]
[1773161801132,0.03,71268.0,71255.0,0.07095014]
[1773161801833,0.03,71266.0,71256.0,0.00144]
[1773161802058,0.0731692,71261.0,71251.0,0.00011275]
[1773161802277,0.03,71258.0,71252.0,0.00144]
[1773161802657,0.03,71258.0,71251.0,0.00011275]
[1773161802937,0.03,71254.0,71244.0,0.00562]
[1773161803139,0.1031692,71252.0,71244.0,0.00562]
[1773161803384,0.07016854,71257.0,71244.0,0.00524449]
[1773161803385,0.03,71250.0,71244.0,0.00524449]
[1773161803620,0.03,71248.0,71244.0,0.00524449]
[1773161803758,0.1031692,71248.0,71244.0,0.00524449]
[1773161803965,0.1031692,71248.0,71239.0,0.00144]
[1773161805180,0.07016854,71259.0,71239.0,0.00144]
[1773161805181,0.03,71251.0,71239.0,0.07162528]
[1773161805378,0.0731692,71256.0,71241.0,0.01596806]
[1773161806346,0.03,71255.0,71241.0,0.01596806]
[1773161806749,0.03,71255.0,71242.0,0.00573325]
[1773161806959,0.07017149,71254.0,71244.0,0.01617003]
[1773161807148,0.07017058,71255.0,71244.0,0.01617003]
[1773161807414,0.07016066,71265.0,71244.0,0.07040125]
[1773161807647,0.07027328,71265.0,71245.0,0.00713658]
[1773161807867,0.07027328,71265.0,71246.0,0.00144]
[1773161808064,0.03,71264.0,71246.0,0.00144]
[1773161808469,0.00011262,71265.0,71246.0,0.00144]
[1773161808677,0.0701462,71280.0,71246.0,0.00144]
[1773161808678,0.0703811,71275.0,71248.0,0.0197329]
[1773161808879,0.07045333,71274.0,71249.0,0.0194298]
[1773161809033,0.03,71272.0,71250.0,0.07017543]
[1773161809237,0.03,71268.0,71250.0,0.07017543]
[1773161809666,0.03,71268.0,71251.0,0.14114227]
[1773161810184,0.03,71267.0,71252.0,0.00144]
[1773161811488,0.03,71266.0,71251.0,0.21131475]
[1773161811664,0.03,71266.0,71248.0,0.07028905]
[1773161811665,0.11994755,71262.0,71253.0,0.00144]
[1773161812396,0.03,71260.0,71253.0,0.00144]
[1773161813495,0.03,71267.0,71254.0,0.07017149]
[1773161813695,0.07015471,71273.0,71254.0,0.07017149]
[1773161814155,0.08973814,71272.0,71254.0,0.07017149]
[1773161814361,0.11973814,71271.0,71254.0,0.07017149]
[1773161814978,0.03,71269.0,71254.0,0.07017149]
[1773161815192,0.03,71267.0,71254.0,0.07017149]
[1773161815425,0.10015895,71267.0,71254.0,0.07017149]
[1773161815636,0.03,71265.0,71255.0,0.00144]
[1773161816680,0.03,71271.0,71255.0,0.00144]
[1773161817384,0.11933963,71271.0,71255.0,0.00144]
[1773161817562,0.03,71269.0,71256.0,0.07016952]
[1773161817790,0.11933963,71269.0,71256.0,0.07016952]
[1773161818085,0.03,71269.0,71256.0,0.07016952]
[1773161818289,0.03,71267.0,71256.0,0.07016952]
[1773161818494,0.08933963,71268.0,71202.0,0.07022274]
[1773161818495,0.08933963,71243.0,71202.0,0.07022274]
[1773161818708,0.18760741,71240.0,71203.0,0.00144]
[1773161818911,0.03,71236.0,71204.0,0.00125278]
[1773161819198,0.03,71228.0,71204.0,0.00125278]
[1773161819759,0.03,71226.0,71205.0,0.07021978]
[1773161819948,0.03,71226.0,71206.0,0.00265712]
[1773161820353,0.03,71226.0,71205.0,0.03863303]
[1773161821077,0.03,71226.0,71206.0,0.00140437]
[1773161821505,0.07019809,71227.0,71206.0,0.00140437]
[1773161821708,0.07018725,71238.0,71206.0,0.00140437]
[1773161821916,0.13973647,71240.0,71210.0,0.15760741]
[1773161822120,0.00562,71244.0,71211.0,0.00144]
[1773161822288,0.00562,71244.0,71212.0,0.202074]
[1773161822289,0.07580168,71244.0,71212.0,0.202074]
[1773161822519,0.07580168,71244.0,71207.0,0.07021781]
[1773161822520,0.09121728,71243.0,71213.0,0.32552]
[1773161822851,0.03,71242.0,71213.0,0.32552]
[1773161823216,0.03,71242.0,71214.0,0.00144]
[1773161823424,0.03,71242.0,71214.0,0.00284421]
[1773161823687,0.07580168,71244.0,71214.0,0.00284421]
[1773161823688,0.07580203,71244.0,71221.0,0.14114227]
[1773161823816,0.07580203,71244.0,71222.0,0.07304707]
[1773161824553,0.07580203,71244.0,71222.0,0.07164302]
[1773161825267,0.07580203,71244.0,71222.0,0.07212302]
[1773161826824,0.03,71244.0,71223.0,0.00140401]
[1773161827029,0.03,71244.0,71223.0,0.17132401]
[1773161828335,0.03,71242.0,71224.0,0.07020105]
[1773161828536,0.03,71242.0,71225.0,0.00284397]
[1773161829283,0.13782894,71240.0,71226.0,0.00144]
[1773161829443,0.13782894,71240.0,71226.0,0.00155264]
[1773161830680,0.10782894,71237.0,71227.0,0.07019809]
[1773161831017,0.03,71236.0,71228.0,0.00144]
[1773161831516,0.03,71236.0,71227.0,0.07019809]
[1773161831690,0.03,71236.0,71229.0,0.00144]
[1773161831873,0.03,71238.0,71229.0,0.00144]
[1773161832099,0.07018527,71242.0,71229.0,0.00144]
[1773161832277,0.07040605,71250.0,71229.0,0.00144]
[1773161832487,0.17832097,71250.0,71229.0,0.00144]
[1773161832713,0.0701774,71248.0,71230.0,0.00144]
[1773161832912,0.03,71247.0,71230.0,0.00144]
[1773161833178,0.00720235,71246.0,71230.0,0.00144]
[1773161833479,0.03,71247.0,71230.0,0.00144]
[1773161833719,0.00720235,71246.0,71230.0,0.00144]
[1773161834503,0.03720235,71246.0,71230.0,0.00144]
[1773161834687,0.03,71246.0,71232.0,0.07019317]
[1773161835405,0.10017939,71246.0,71232.0,0.07019317]
[1773161835628,0.10738174,71246.0,71232.0,0.07019317]
[1773161835800,0.03,71243.0,71233.0,0.00144]
[1773161836907,0.0002,71244.0,71234.0,0.0701912]
[1773161837127,0.00023,71250.0,71234.0,0.0701912]
[1773161837320,0.07040585,71250.0,71234.0,0.0701912]
[1773161837556,0.00023,71250.0,71234.0,0.0701912]
[1773161837778,0.03,71251.0,71234.0,0.0701912]
[1773161838005,0.07016666,71259.0,71234.0,0.0701912]
[1773161838006,0.07016066,71265.0,71240.0,0.15760741]
[1773161838227,0.20966104,71266.0,71241.0,0.00144]
[1773161838426,0.11647269,71265.0,71242.0,0.00144]
[1773161838630,0.11647269,71264.0,71241.0,0.15548]
[1773161838954,0.00720235,71265.0,71241.0,0.15548]
[1773161838955,0.14647269,71261.0,71243.0,0.07018233]
[1773161839360,0.03,71261.0,71243.0,0.07018233]
[1773161839903,0.03,71262.0,71243.0,0.07018233]
[1773161840947,0.03,71261.0,71243.0,0.07018233]
[1773161841157,0.00720235,71266.0,71243.0,0.07018233]
[1773161841339,0.11664763,71265.0,71243.0,0.07018233]
[1773161842066,0.03,71264.0,71243.0,0.07018233]
[1773161842646,0.03,71264.0,71243.0,0.06918233]
[1773161842832,0.14664763,71264.0,71243.0,0.06918233]
[1773161843025,0.03,71263.0,71243.0,0.06918233]
[1773161843876,0.07055038,71271.0,71243.0,0.06918233]
[1773161844194,0.03,71267.0,71243.0,0.06918233]
[1773161844395,0.03,71265.0,71243.0,0.06918233]
[1773161844562,0.03,71263.0,71243.0,0.06918233]
[1773161844931,0.03,71261.0,71243.0,0.06918233]
[1773161845184,0.03,71259.0,71244.0,0.15548]
[1773161845390,0.03,71259.0,71245.0,0.16988]
[1773161845619,0.07015973,71266.0,71245.0,0.16988]
[1773161845791,0.07015929,71267.0,71245.0,0.16988]
[1773161846203,0.12888652,71266.0,71245.0,0.16988]
[1773161846408,0.03,71261.0,71246.0,0.32536]
[1773161847457,0.03,71257.0,71242.0,0.07018331]
[1773161847657,0.03,71251.0,71241.0,0.07018233]
[1773161847860,0.07016519,71261.0,71242.0,0.00144]
[1773161847861,0.03,71245.0,71242.0,0.00144]
[1773161848063,0.03,71243.0,71234.0,0.0701906]
[1773161848262,0.15883978,71243.0,71235.0,0.00144]
[1773161848993,0.15883978,71243.0,71232.0,0.07019222]
[1773161849235,0.15883978,71243.0,71234.0,0.00022]
[1773161849566,0.03,71241.0,71234.0,0.07041055]
[1773161850572,0.03,71242.0,71234.0,0.07041055]
[1773161850773,0.19902257,71243.0,71227.0,0.07019808]
[1773161850774,0.03,71240.0,71227.0,0.07019808]
[1773161850976,0.17143976,71236.0,71227.0,0.07019808]
[1773161851172,0.17143976,71236.0,71228.0,0.00144]
[1773161851602,0.17143976,71236.0,71227.0,0.07019808]
[1773161851603,0.24161152,71236.0,71229.0,0.0716357]
[1773161851948,0.03,71232.0,71230.0,0.00144]
[1773161852297,0.17142218,71231.0,71226.0,0.00033264]
[1773161852475,0.17142218,71231.0,71227.0,0.00144]
[1773161852719,0.14142218,71236.0,71227.0,0.00144]
[1773161853162,0.14142218,71236.0,71226.0,0.07053139]
[1773161853337,0.03,71233.0,71228.0,0.00144]
[1773161853540,0.17139688,71229.0,71228.0,0.00144]
[1773161853911,0.241593,71229.0,71228.0,0.00144]
[1773161854216,0.10019612,71229.0,71220.0,0.01]
[1773161854415,0.17139688,71224.0,71223.0,0.00144]
[1773161856409,0.1114129,71247.0,71220.0,0.01]
[1773161856542,0.14137363,71243.0,71223.0,0.14104671]
[1773161856736,0.07018148,71244.0,71227.0,0.00022]
[1773161856737,0.14137363,71244.0,71227.0,0.00022]
[1773161856942,0.14137363,71243.0,71227.0,0.00022]
[1773161857394,0.1413472,71249.0,71227.0,0.00022]
[1773161857605,0.03,71248.0,71227.0,0.00022]
[1773161857798,0.10017743,71248.0,71228.0,0.07019711]
[1773161857999,0.03,71246.0,71229.0,0.00144]
[1773161859488,0.03,71247.0,71243.0,0.001]
[1773161859687,0.03,71245.0,71244.0,0.00144]
[1773161859968,0.17132944,71245.0,71244.0,0.00144]
[1773161861414,0.17132944,71245.0,71237.0,0.07018785]
[1773161861612,0.17132944,71245.0,71235.0,0.07018926]
[1773161861613,0.17132944,71245.0,71238.0,0.00144]
[1773161862053,0.17132944,71245.0,71238.0,0.0716267]
[1773161862519,0.17232944,71245.0,71238.0,0.0716267]
[1773161862871,0.17173454,71241.0,71235.0,0.0701901]
[1773161863094,0.17173454,71241.0,71236.0,0.00144]
[1773161864459,0.17173454,71241.0,71236.0,0.07162851]
[1773161868381,0.000191,71244.0,71236.0,0.07162851]
[1773161869334,0.03,71243.0,71236.0,0.07162851]
[1773161869548,0.07017654,71249.0,71236.0,0.07162851]
[1773161869951,0.14160812,71248.0,71236.0,0.07162851]
[1773161870244,0.07017839,71247.0,71236.0,0.07162851]
[1773161870632,0.14160812,71240.0,71220.0,0.01]
[1773161870835,0.03,71235.0,71221.0,0.00144]
[1773161871038,0.03,71229.0,71222.0,0.00144]
[1773161871237,0.03,71225.0,71222.0,0.00144]
[1773161871391,0.17159423,71225.0,71222.0,0.00144]
[1773161872932,0.17259423,71225.0,71222.0,0.00144]
[1773161875024,0.18794341,71223.0,71220.0,0.01011262]
[1773161875229,0.18794341,71223.0,71221.0,0.00144]
[1773161875563,0.18794341,71223.0,71212.0,0.00022]
[1773161875743,0.18794341,71223.0,71214.0,0.00144]
[1773161876242,0.18794341,71223.0,71215.0,0.00144]
[1773161876739,0.18794341,71223.0,71212.0,0.00022]